bitfinex-derivatives/quotes_BTCF0:USTF0_20250208
["timestamp","ask_amount","ask_price","bid_price","bid_amount"]
[1738998110684,0.3608,96123.0,96121.0,0.2080551]
[1738998111388,0.3608,96123.0,96103.0,0.0333]
[1738998111592,0.3608,96123.0,96111.0,0.2080775]
[1738998111593,0.3608,96112.0,96111.0,0.2080775]
[1738998112187,0.3608,96112.0,96105.0,0.2080898]
[1738998112397,0.096,96111.0,96105.0,0.2080898]
[1738998113583,0.096,96111.0,96101.0,0.07167611]
[1738998113787,0.096,96111.0,96102.0,0.208097]
[1738998113788,0.3608,96104.0,96102.0,0.208097]
[1738998114589,0.3608,96104.0,96101.0,0.07167611]
[1738998114786,0.3608,96104.0,96101.0,0.07667611]
[1738998114985,0.3608,96104.0,96101.0,0.00515611]
[1738998115191,0.3608,96104.0,96102.0,0.208097]
[1738998115587,0.3608,96104.0,96102.0,0.212097]
[1738998116189,0.2080948,96103.0,96102.0,0.212097]
[1738998116395,0.2080948,96103.0,96102.0,0.214097]
[1738998117397,0.3608,96104.0,96102.0,0.214097]
[1738998117592,0.3608,96104.0,96102.0,0.210097]
[1738998117796,0.3608,96104.0,96102.0,0.214097]
[1738998118497,0.3608,96104.0,96102.0,0.212097]
[1738998119096,0.3608,96104.0,96102.0,0.209097]
[1738998119296,0.3608,96104.0,96102.0,0.212097]
[1738998124804,0.2201,96103.0,96102.0,0.212097]
[1738998125803,0.2201,96103.0,96102.0,0.209097]
[1738998126031,0.2201,96103.0,96102.0,0.212097]
[1738998126332,0.2201,96103.0,96102.0,0.004]
[1738998128010,0.2201,96103.0,96090.0,0.00156082]
[1738998128197,0.3608,96091.0,96090.0,0.20968382]
[1738998129107,0.3608,96091.0,96090.0,0.22468382]
[1738998129600,0.3608,96091.0,96090.0,0.21868382]
[1738998129910,0.3608,96091.0,96090.0,0.22368382]
[1738998130100,0.3608,96091.0,96090.0,0.23406395]
[1738998130501,0.3608,96091.0,96090.0,0.22506395]
[1738998130702,0.3618,96091.0,96090.0,0.23206395]
[1738998131309,0.3608,96091.0,96090.0,0.22006395]
[1738998131611,0.3618,96091.0,96090.0,0.23206395]
[1738998131919,0.3618,96091.0,96090.0,0.22706395]
[1738998132210,0.3618,96091.0,96090.0,0.23206395]
[1738998134694,0.3618,96091.0,96090.0,0.22506395]
[1738998134905,0.3618,96091.0,96090.0,0.23206395]
[1738998135204,0.3618,96091.0,96090.0,0.22068382]
[1738998135399,0.3618,96091.0,96090.0,0.01256082]
[1738998136908,0.001,96091.0,96090.0,0.01256082]
[1738998137107,0.3618,96091.0,96090.0,0.01256082]
[1738998137372,0.3618,96091.0,96090.0,0.00556082]
[1738998137536,0.3618,96091.0,96090.0,0.01256082]
[1738998138205,0.3618,96091.0,96090.0,0.00856082]
[1738998138403,0.3618,96091.0,96090.0,0.01256082]
[1738998138911,0.3618,96091.0,96090.0,0.011]
[1738998139800,0.3618,96091.0,96090.0,0.004]
[1738998140011,0.3618,96091.0,96090.0,0.011]
[1738998140505,0.3618,96091.0,96090.0,0.007]
[1738998140722,0.3618,96091.0,96090.0,0.011]
[1738998141111,0.3618,96091.0,96090.0,0.006]
[1738998141311,0.3618,96091.0,96090.0,0.009]
[1738998143114,0.3618,96091.0,96090.0,0.0395]
[1738998144511,0.3618,96091.0,96090.0,0.0365]
[1738998144713,0.3618,96091.0,96090.0,0.0395]
[1738998148414,0.3618,96091.0,96090.0,0.009]
[1738998154718,0.394,96091.0,96090.0,0.009]
[1738998155213,0.6141,96091.0,96090.0,0.009]
[1738998155516,0.6141,96091.0,96090.0,0.00274062]
[1738998156914,0.62459136,96091.0,96090.0,0.00274062]
[1738998157119,0.92459136,96091.0,96090.0,0.00274062]
[1738998157312,0.2081403,96082.0,96081.0,0.00015611]
[1738998157513,0.5689403,96082.0,96081.0,0.00015611]
[1738998159112,0.8689403,96082.0,96081.0,0.00015611]
[1738998159323,0.91955225,96082.0,96081.0,0.00015611]
[1738998160214,0.91955225,96082.0,96054.0,0.0301]
[1738998160215,0.2081976,96056.0,96054.0,0.0301]
[1738998160411,0.3608,96055.0,96054.0,0.0301]
[1738998160618,0.3608,96055.0,96041.0,0.10196]
[1738998160909,0.2082206,96045.0,96042.0,0.0316]
[1738998161115,0.3608,96043.0,96042.0,0.0316]
[1738998162522,0.3618,96043.0,96042.0,0.0406]
[1738998163029,0.7901248,96043.0,96042.0,0.009]
[1738998163529,0.7911248,96043.0,96042.0,0.015]
[1738998164220,0.7911248,96043.0,96042.0,0.014]
[1738998164521,0.7901248,96043.0,96042.0,0.01]
[1738998165425,0.7901248,96043.0,96042.0,0.006]
[1738998165619,0.7891248,96043.0,96042.0,0.004]
[1738998166427,0.7891248,96043.0,96042.0,0.002]
[1738998167116,0.2082351,96039.0,96034.0,0.00015611]
[1738998167317,0.3608,96035.0,96034.0,0.00015611]
[1738998168524,0.3608,96035.0,96034.0,0.00215611]
[1738998169726,0.3608,96035.0,96034.0,0.00515611]
[1738998170325,0.3608,96035.0,96034.0,0.00215611]
[1738998170519,0.3608,96035.0,96034.0,0.00415611]
[1738998171119,0.3608,96035.0,96034.0,0.00315611]
[1738998172419,0.3608,96035.0,96034.0,0.00115611]
[1738998172624,0.3608,96035.0,96034.0,0.00315611]
[1738998173242,0.3608,96035.0,96034.0,0.00115611]
[1738998173530,0.3608,96035.0,96034.0,0.00315611]
[1738998173730,0.3608,96035.0,96034.0,0.00415611]
[1738998174427,0.36095611,96053.0,96051.0,0.2082057]
[1738998174630,0.36095611,96053.0,96052.0,0.0935]
[1738998175127,0.00015611,96053.0,96052.0,0.0935]
[1738998175933,0.00615611,96053.0,96052.0,0.0935]
[1738998176640,0.3608,96057.0,96052.0,0.0945]
[1738998176843,0.011,96053.0,96052.0,0.3027053]
[1738998179147,0.011,96053.0,96052.0,0.31313094]
[1738998179737,0.011,96053.0,96052.0,0.31213094]
[1738998179941,0.011,96053.0,96052.0,0.31313094]
[1738998179942,0.005,96053.0,96052.0,0.31313094]
[1738998180531,0.005,96053.0,96052.0,0.31213094]
[1738998180838,0.011,96053.0,96052.0,0.31313094]
[1738998181768,0.3718,96053.0,96052.0,0.35317094]
[1738998181948,0.011,96053.0,96052.0,0.35317094]
[1738998185846,0.011,96053.0,96052.0,0.3427453]
[1738998186078,0.3718,96053.0,96052.0,0.10264]
[1738998188743,0.3718,96053.0,96052.0,0.07224]
[1738998189144,0.3718,96053.0,96052.0,0.001]
[1738998189648,0.4034,96053.0,96052.0,0.001]
[1738998190155,0.6235,96053.0,96052.0,0.001]
[1738998192044,0.9843,96053.0,96052.0,0.001]
[1738998193647,0.96311748,96053.0,96052.0,0.001]
[1738998209857,1.01374664,96053.0,96052.0,0.001]
[1738998210785,0.2082423,96035.0,96034.0,0.00015611]
[1738998210962,0.5690423,96035.0,96034.0,0.00015611]
[1738998212159,0.5690423,96035.0,96034.0,0.00215611]
[1738998212956,0.5690423,96035.0,96034.0,0.00515611]
[1738998217560,0.2082423,96035.0,96034.0,0.00515611]
[1738998217866,0.5690423,96035.0,96034.0,0.00515611]
[1738998219068,0.3608,96035.0,96034.0,0.00515611]
[1738998224964,0.3608,96040.0,96034.0,0.00515611]
[1738998225165,0.3608,96040.0,96035.0,0.0627]
[1738998226161,0.3608,96040.0,96038.0,0.2082351]
[1738998226367,0.3608,96040.0,96039.0,0.0321]
[1738998226757,0.5690314,96040.0,96039.0,0.0321]
[1738998228770,0.2082314,96040.0,96039.0,0.0321]
[1738998228966,0.5690314,96040.0,96039.0,0.0321]
[1738998229271,0.5690314,96040.0,96039.0,0.04339847]
[1738998231473,0.5690314,96040.0,96039.0,0.0331]
[1738998233174,0.5690314,96040.0,96039.0,0.001]
[1738998233984,0.57939459,96040.0,96039.0,0.001]
[1738998234783,0.79949459,96040.0,96039.0,0.001]
[1738998237990,0.8501275,96040.0,96039.0,0.001]
[1738998240795,1.2109275,96040.0,96039.0,0.001]
[1738998244487,0.4893275,96040.0,96039.0,0.001]
[1738998244683,1.2109275,96040.0,96039.0,0.001]
[1738998245099,1.2814475,96040.0,96039.0,0.001]
[1738998245973,1.2109275,96040.0,96039.0,0.001]
[1738998246494,1.2109275,96040.0,96034.0,0.00015611]
[1738998246495,1.0026961,96040.0,96034.0,0.00015611]
[1738998246685,1.2109274,96040.0,96039.0,0.001]
[1738998247287,1.2109274,96040.0,96034.0,0.00015611]
[1738998247288,1.0026961,96040.0,96034.0,0.00015611]
[1738998247474,0.2082416,96035.0,96034.0,0.00015611]
[1738998250282,0.2082416,96035.0,96034.0,0.00115611]
[1738998252282,0.2092416,96035.0,96034.0,0.00115611]
[1738998253494,0.2092416,96035.0,96034.0,0.00015611]
[1738998263604,0.25987575,96035.0,96034.0,0.00015611]
[1738998264404,0.47997575,96035.0,96034.0,0.00015611]
[1738998266592,0.2082657,96024.0,96018.0,0.2082776]
[1738998266823,0.3608,96019.0,96018.0,0.21867443]
[1738998268001,0.3608,96019.0,96018.0,0.22367443]
[1738998268811,0.3618,96019.0,96018.0,0.22367443]
[1738998269602,0.3618,96019.0,96018.0,0.22867443]
[1738998271208,0.001,96019.0,96018.0,0.22867443]
[1738998271411,0.3618,96019.0,96018.0,0.22867443]
[1738998279926,0.001,96019.0,96018.0,0.22867443]
[1738998280422,0.3618,96019.0,96018.0,0.22867443]
[1738998288714,0.001,96019.0,96018.0,0.22867443]
[1738998294145,0.00015619,96028.0,96027.0,0.2082589]
[1738998294322,0.00015619,96028.0,96027.0,0.2782589]
[1738998295729,0.00015619,96028.0,96027.0,0.2842589]
[1738998305353,0.00015619,96028.0,96027.0,0.2142589]
[1738998319852,0.00015619,96028.0,96027.0,0.2102589]
[1738998320050,0.00015619,96028.0,96027.0,0.2132589]
[1738998321254,0.00015619,96028.0,96027.0,0.005]
[1738998322439,0.03325619,96028.0,96027.0,0.005]
[1738998322640,0.03325619,96028.0,96027.0,0.004]
[1738998323344,0.03325619,96028.0,96027.0,0.002]
[1738998323748,0.03325619,96028.0,96027.0,0.001]
[1738998325150,0.2082627,96026.0,96018.0,0.01039683]
[1738998325343,0.2082627,96026.0,96016.0,0.208282]
[1738998325344,0.3608,96021.0,96016.0,0.208282]
[1738998326448,0.3618,96021.0,96016.0,0.218282]
[1738998328147,0.3618,96021.0,96016.0,0.01]
[1738998328346,0.2082798,96018.0,96016.0,0.01]
[1738998328844,0.3608,96017.0,96016.0,0.009]
[1738998329353,0.3608,96017.0,96016.0,0.004]
[1738998329557,0.2082943,96011.0,96006.0,0.0102152]
[1738998329752,0.0642,96010.0,96002.0,0.06964]
[1738998329959,0.0642,96010.0,96003.0,0.2083104]
[1738998330149,0.0642,96010.0,96004.0,0.2083075]
[1738998331957,0.0652,96010.0,96009.0,0.00615619]
[1738998332259,0.0662,96010.0,96009.0,0.01015619]
[1738998340368,0.0652,96010.0,96009.0,0.01115619]
[1738998341669,0.001,96010.0,96009.0,0.01115619]
[1738998341962,0.001,96010.0,96009.0,0.01015619]
[1738998342565,0.001,96010.0,96009.0,0.00715619]
[1738998342761,0.5702419,96017.0,96009.0,0.00715619]
[1738998342955,0.5690819,96017.0,96009.0,0.00715619]
[1738998343162,0.5690819,96017.0,96009.0,0.00815619]
[1738998343557,0.001,96010.0,96009.0,0.21645439]
[1738998344266,0.5702419,96017.0,96011.0,0.2082938]
[1738998344460,0.5700819,96017.0,96011.0,0.2082938]
[1738998345455,0.3608,96012.0,96011.0,0.2082938]
[1738998345665,0.3608,96012.0,96011.0,0.2102938]
[1738998346664,0.3608,96012.0,96011.0,0.2142938]
[1738998347566,0.2082819,96017.0,96011.0,0.2142938]
[1738998347974,0.3608,96012.0,96011.0,0.2142938]
[1738998348870,0.3608,96012.0,96011.0,0.2102938]
[1738998349171,0.3608,96012.0,96011.0,0.2142938]
[1738998349568,0.3608,96012.0,96011.0,0.2102938]
[1738998349762,0.3608,96012.0,96011.0,0.2142938]
[1738998353775,0.5690916,96012.0,96011.0,0.006]
[1738998360382,0.5690916,96012.0,96011.0,0.004]
[1738998360683,0.5690916,96012.0,96011.0,0.006]
[1738998360880,0.3608,96012.0,96011.0,0.006]
[1738998361770,0.3608,96012.0,96011.0,0.002]
[1738998361975,0.3608,96012.0,96011.0,0.005]
[1738998367495,0.3608,96012.0,96011.0,0.004]
[1738998367999,0.3608,96012.0,96009.0,0.00015619]
[1738998368295,0.3608,96012.0,96011.0,0.004]
[1738998368797,0.3608,96012.0,96011.0,0.001]
[1738998368995,0.0309,96014.0,96011.0,0.003]
[1738998369205,0.3608,96012.0,96011.0,0.003]
[1738998369800,0.3608,96012.0,96011.0,0.002]
[1738998369987,0.3933,96012.0,96011.0,0.002]
[1738998370693,0.3933,96012.0,96011.0,0.003]
[1738998370895,0.3933,96012.0,96011.0,0.001]
[1738998371194,0.3933,96012.0,96011.0,0.003]
[1738998371702,0.3933,96012.0,96011.0,0.001]
[1738998371900,0.3933,96012.0,96011.0,0.003]
[1738998373891,0.6134,96012.0,96011.0,0.003]
[1738998374096,0.76919012,96012.0,96011.0,0.003]
[1738998376296,0.6134,96012.0,96011.0,0.003]
[1738998380603,0.9742,96012.0,96011.0,0.002]
[1738998380812,0.9742,96012.0,96009.0,0.00015619]
[1738998381006,1.1824916,96012.0,96011.0,0.002]
[1738998381306,1.1844916,96012.0,96011.0,0.002]
[1738998381698,0.9742,96012.0,96009.0,0.00015619]
[1738998381905,0.2082959,96010.0,96009.0,0.00015619]
[1738998383302,0.4283959,96010.0,96009.0,0.00015619]
[1738998383905,0.2083154,96001.0,96000.0,0.1]
[1738998384102,0.5691154,96001.0,96000.0,0.1]
[1738998385398,0.5701154,96001.0,96000.0,0.1]
[1738998386704,0.58039555,96001.0,96000.0,0.1]
[1738998393716,0.94119555,96001.0,96000.0,0.1]
[1738998400908,0.94219555,96001.0,96000.0,0.1]
[1738998401304,0.94419555,96001.0,96000.0,0.1]
[1738998401505,0.94219555,96001.0,96000.0,0.1]
[1738998401705,0.94419555,96001.0,96000.0,0.1]
[1738998405419,1.09976901,96001.0,96000.0,0.1]
[1738998409021,0.99484829,96001.0,96000.0,0.1]
[1738998413017,1.21494829,96001.0,96000.0,0.1]
[1738998416716,1.21594829,96001.0,96000.0,0.1]
[1738998417217,1.21294829,96001.0,96000.0,0.1]
[1738998417414,1.21694829,96001.0,96000.0,0.1]
[1738998417920,1.21794829,96001.0,96000.0,0.1]
[1738998418623,1.21994829,96001.0,96000.0,0.1]
[1738998419326,0.2083349,95992.0,95991.0,0.00015619]
[1738998419619,0.5691349,95992.0,95991.0,0.00015619]
[1738998420221,0.7892349,95992.0,95991.0,0.00015619]
[1738998421230,0.7922349,95992.0,95991.0,0.00015619]
[1738998421416,0.7942349,95992.0,95991.0,0.00015619]
[1738998421777,0.84488764,95992.0,95991.0,0.00015619]
[1738998422320,0.91018764,95992.0,95991.0,0.00015619]
[1738998427125,1.09698025,95992.0,95991.0,0.00015619]
[1738998427828,1.06418025,95992.0,95991.0,0.00015619]
[1738998428448,1.03168025,95992.0,95991.0,0.00015619]
[1738998429332,0.84488764,95992.0,95991.0,0.00015619]
[1738998430138,0.84488764,95992.0,95987.0,0.0642]
[1738998430348,0.3608,95988.0,95987.0,0.0642]
[1738998432130,0.3618,95988.0,95987.0,0.0642]
[1738998432535,0.3628,95988.0,95987.0,0.0642]
[1738998448544,0.002,95988.0,95987.0,0.0642]
[1738998448745,0.3628,95988.0,95987.0,0.0642]
[1738998449537,0.5711431,95988.0,95987.0,0.0321]
[1738998449740,0.208352,95984.0,95982.0,0.0314]
[1738998451143,0.208352,95984.0,95982.0,0.0334]
[1738998451843,0.208352,95984.0,95982.0,0.0344]
[1738998455949,0.208352,95984.0,95982.0,0.003]
[1738998459948,0.0305,95986.0,95982.0,0.003]
[1738998460157,0.0305,95986.0,95982.0,0.2113549]
[1738998463853,0.0305,95986.0,95984.0,0.2083504]
[1738998464055,0.18748278,95987.0,95985.0,0.2083481]
[1738998466751,0.0319,95987.0,95985.0,0.2083481]
[1738998467963,0.3608,95988.0,95987.0,0.2083512]
[1738998469156,0.3618,95988.0,95987.0,0.2083512]
[1738998470159,0.3628,95988.0,95987.0,0.2083512]
[1738998471665,0.3628,95988.0,95987.0,0.21898455]
[1738998474460,0.36279974,95988.0,95987.0,0.21898455]
[1738998476959,0.36279974,95988.0,95987.0,0.2083512]
[1738998478063,0.57114864,95988.0,95981.0,0.2083641]
[1738998478470,0.2083526,95987.0,95981.0,0.2083641]
[1738998479468,0.2083526,95987.0,95981.0,0.2093641]
[1738998480170,0.3608,95984.0,95981.0,0.2093641]
[1738998480370,0.0307,95983.0,95981.0,0.2093641]
[1738998480568,0.0307,95983.0,95981.0,0.2113641]
[1738998480970,0.0307,95983.0,95981.0,0.003]
[1738998481175,0.2390533,95983.0,95981.0,0.003]
[1738998482566,0.3608,95982.0,95981.0,0.003]
[1738998483670,0.2390533,95983.0,95981.0,0.003]
[1738998483881,0.3608,95982.0,95981.0,0.003]
[1738998488888,0.4249,95982.0,95981.0,0.003]
[1738998490488,0.3929,95982.0,95981.0,0.003]
[1738998492190,0.3929,95982.0,95981.0,0.002]
[1738998493496,0.3929,95982.0,95978.0,0.20851989]
[1738998494090,0.3608,95979.0,95978.0,0.20851989]
[1738998494591,0.3608,95979.0,95978.0,0.21051989]
[1738998494888,0.3608,95979.0,95978.0,0.21151989]
[1738998495995,0.2083603,95980.0,95978.0,0.21151989]
[1738998496294,0.3608,95979.0,95978.0,0.21151989]
[1738998497193,0.3608,95979.0,95978.0,0.20951989]
[1738998497496,0.3608,95979.0,95978.0,0.21151989]
[1738998499297,0.2083603,95980.0,95978.0,0.21151989]
[1738998499491,0.3608,95979.0,95978.0,0.21151989]
[1738998500997,0.3608,95979.0,95978.0,0.21051989]
[1738998501292,0.3608,95979.0,95978.0,0.21151989]
[1738998505801,0.2083603,95980.0,95978.0,0.21151989]
[1738998505998,0.3608,95979.0,95978.0,0.21151989]
[1738998506292,0.2083603,95980.0,95978.0,0.21151989]
[1738998506505,0.3608,95979.0,95978.0,0.21151989]
[1738998509299,0.3608,95979.0,95978.0,0.00315619]
[1738998512690,0.37124495,95979.0,95978.0,0.00315619]
[1738998513405,0.01044495,95979.0,95978.0,0.00315619]
[1738998513604,0.3608,95979.0,95978.0,0.00315619]
[1738998523110,0.41146147,95979.0,95978.0,0.00315619]
[1738998526307,0.41146147,95979.0,95966.0,0.2083946]
[1738998526515,0.3608,95967.0,95966.0,0.2083946]
[1738998527820,0.3608,95967.0,95966.0,0.2133946]
[1738998528011,0.3608,95967.0,95966.0,0.2143946]
[1738998528410,0.3608,95967.0,95966.0,0.2133946]
[1738998529312,0.3618,95967.0,95966.0,0.2133946]
[1738998530011,0.3618,95967.0,95966.0,0.2093946]
[1738998530200,0.3618,95967.0,95966.0,0.2123946]
[1738998530808,0.3608,95967.0,95966.0,0.2093946]
[1738998531008,0.2083877,95968.0,95966.0,0.2103946]
[1738998531316,0.3608,95967.0,95966.0,0.2103946]
[1738998531617,0.3608,95967.0,95966.0,0.2093946]
[1738998531812,0.3608,95967.0,95966.0,0.2103946]
[1738998533122,0.3608,95967.0,95966.0,0.002]
[1738998533308,0.3608,95967.0,95966.0,0.001]
[1738998533508,0.3608,95967.0,95966.0,0.002]
[1738998534804,0.3608,95967.0,95966.0,0.001]
[1738998535018,0.3608,95967.0,95966.0,0.002]
[1738998535428,0.42455507,95967.0,95966.0,0.002]
[1738998535721,0.45765507,95967.0,95966.0,0.002]
[1738998536608,0.45765507,95967.0,95966.0,0.001]
[1738998537207,0.45765507,95967.0,95957.0,0.00015627]
[1738998537416,0.83210773,95967.0,95966.0,0.001]
[1738998537619,1.07951874,95967.0,95966.0,0.001]
[1738998538026,0.87112874,95967.0,95957.0,0.00015627]
[1738998538223,0.5692096,95958.0,95957.0,0.00015627]
[1738998540834,0.5712096,95958.0,95957.0,0.00015627]
[1738998541916,0.5732096,95958.0,95957.0,0.00015627]
[1738998543526,0.58385676,95958.0,95957.0,0.00015627]
[1738998543920,0.80395676,95958.0,95957.0,0.00015627]
[1738998545226,0.87371676,95958.0,95957.0,0.00015627]
[1738998547420,1.02908692,95958.0,95957.0,0.00015627]
[1738998549825,0.87371676,95958.0,95957.0,0.00015627]
[1738998550224,0.87471676,95958.0,95957.0,0.00015627]
[1738998551137,0.87271676,95958.0,95957.0,0.00015627]
[1738998551430,0.87571676,95958.0,95957.0,0.00015627]
[1738998551731,1.03108692,95958.0,95957.0,0.00015627]
[1738998554731,0.87571676,95958.0,95957.0,0.00015627]
[1738998556634,0.80595676,95958.0,95957.0,0.00015627]
[1738998556866,0.7953096,95958.0,95957.0,0.00015627]
[1738998558135,0.84598861,95958.0,95957.0,0.00015627]
[1738998558541,0.41747901,95958.0,95957.0,0.00015627]
[1738998558841,0.41747901,95958.0,95957.0,0.20856737]
[1738998561333,0.3668,95958.0,95957.0,0.20856737]
[1738998568341,0.3668,95958.0,95957.0,0.21927333]
[1738998569236,0.006,95958.0,95957.0,0.21927333]
[1738998569535,0.3668,95958.0,95957.0,0.21927333]
[1738998571339,0.3668,95958.0,95957.0,0.20856737]
[1738998586142,0.006,95958.0,95957.0,0.20856737]
[1738998586360,0.3668,95958.0,95957.0,0.20856737]
[1738998596356,0.41746987,95958.0,95957.0,0.20856737]
[1738998603749,0.3668,95958.0,95957.0,0.20856737]
[1738998610961,0.3638,95958.0,95957.0,0.20856737]
[1738998611159,0.3668,95958.0,95957.0,0.20856737]
[1738998619874,0.006,95958.0,95957.0,0.20856737]
[1738998620166,0.3608,95964.0,95957.0,0.30015627]
[1738998620357,0.3608,95964.0,95963.0,0.2083987]
[1738998620558,0.18644419,95968.0,95967.0,0.20839]
[1738998621465,0.3608,95980.0,95974.0,0.2083748]
[1738998621466,0.18644419,95975.0,95974.0,0.2083748]
[1738998623573,0.18844419,95975.0,95974.0,0.2083748]
[1738998623975,0.3608,95980.0,95974.0,0.2083748]
[1738998624171,0.3608,95980.0,95975.0,0.0314]
[1738998624673,0.3608,95980.0,95975.0,0.0618]
[1738998625780,0.00115627,95976.0,95975.0,0.0618]
[1738998626581,0.00115627,95976.0,95974.0,0.2083748]
[1738998626882,0.00215627,95976.0,95974.0,0.2083748]
[1738998629967,0.00115627,95976.0,95974.0,0.2083748]
[1738998634780,0.3608,95975.0,95974.0,0.2083748]
[1738998636778,0.3618,95975.0,95974.0,0.2083748]
[1738998647890,0.3618,95975.0,95974.0,0.21896817]
[1738998657092,0.3618,95975.0,95974.0,0.2083748]
[1738998657482,0.2083808,95972.0,95968.0,0.01065608]
[1738998657688,0.2083808,95972.0,95969.0,0.208386]
[1738998658392,0.2083808,95972.0,95970.0,0.2083833]
[1738998659993,0.2083808,95972.0,95970.0,0.2093833]
[1738998660386,0.2083808,95972.0,95970.0,0.2103833]
[1738998661085,0.2083808,95972.0,95970.0,0.2520533]
[1738998661276,0.3608,95975.0,95970.0,0.04367]
[1738998661484,0.3608,95975.0,95972.0,0.2083792]
[1738998661780,0.3608,95975.0,95974.0,0.2083755]
[1738998663598,0.3618,95975.0,95974.0,0.2083755]
[1738998666205,0.001,95975.0,95974.0,0.2083755]
[1738998667492,0.3608,95987.0,95986.0,0.2083495]
[1738998668090,0.3608,95987.0,95986.0,0.2387495]
[1738998668490,0.13425509,95989.0,95988.0,0.2083451]
[1738998668703,0.18644419,95995.0,95994.0,0.2083321]
[1738998669399,0.14050379,96006.0,96005.0,0.2083082]
[1738998669596,0.14050379,96006.0,96005.0,0.2795482]
[1738998671796,0.14350379,96006.0,96005.0,0.2795482]
[1738998672001,0.14350379,96006.0,96005.0,0.07124]
[1738998672202,0.35380989,96006.0,96005.0,0.07124]
[1738998673192,0.2083117,96004.0,95998.0,0.2083225]
[1738998673394,0.3608,95999.0,95998.0,0.2083225]
[1738998674890,0.3668,95999.0,95998.0,0.2093225]
[1738998676186,0.3748,95999.0,95998.0,0.001]
[1738998676707,0.4066,95999.0,95998.0,0.001]
[1738998682497,0.0458,95999.0,95998.0,0.001]
[1738998682702,0.4066,95999.0,95998.0,0.001]
[1738998685409,0.4066,95999.0,95997.0,0.1993241]
[1738998686499,0.4056,95999.0,95997.0,0.1993241]
[1738998687313,0.3976,95999.0,95997.0,0.1993241]
[1738998687506,0.4046,95999.0,95997.0,0.1993241]
[1738998691107,0.3728,95999.0,95997.0,0.1993241]
[1738998691301,0.3728,95999.0,95998.0,0.0665]
[1738998692510,0.3678,95999.0,95998.0,0.0665]
[1738998692706,0.013,95999.0,95998.0,0.0675]
[1738998693613,0.014,95999.0,95998.0,0.0675]
[1738998706230,0.014,95999.0,95998.0,0.07304]
[1738998707819,0.3748,95999.0,95998.0,0.07304]
[1738998708020,0.3748,95999.0,95998.0,0.001]
[1738998709041,0.3748,95999.0,95960.0,0.44283133]
[1738998709042,0.3748,95999.0,95977.0,0.00015627]
[1738998709364,0.7216,95978.0,95977.0,0.00015627]
[1738998710426,0.7216,95978.0,95977.0,0.00215627]
[1738998710621,0.7216,95978.0,95977.0,0.00515627]
[1738998712015,0.7216,95978.0,95977.0,0.00215627]
[1738998712216,0.7216,95978.0,95977.0,0.00415627]
[1738998712727,0.7216,95978.0,95977.0,0.00194759]
[1738998713021,0.7216,95978.0,95977.0,0.00394759]
[1738998713421,0.7216,95978.0,95977.0,0.00194759]
[1738998713734,0.7216,95978.0,95977.0,0.006]
[1738998714110,0.7216,95978.0,95977.0,0.004]
[1738998714316,0.7216,95978.0,95977.0,0.006]
[1738998715328,0.7216,95978.0,95977.0,0.005]
[1738998726052,0.9299669,95978.0,95977.0,0.005]
[1738998728437,0.7216,95978.0,95977.0,0.005]
[1738998730238,0.3608,95986.0,95977.0,0.005]
[1738998730444,0.3608,95986.0,95979.0,0.2083645]
[1738998730633,0.3608,95986.0,95978.0,0.0886]
[1738998730634,0.3608,95986.0,95982.0,0.2083581]
[1738998730940,0.3608,95986.0,95984.0,0.2083526]
[1738998731137,0.3608,95986.0,95985.0,0.0301]
[1738998732738,0.3618,95986.0,95985.0,0.0301]
[1738998733442,0.3628,95986.0,95985.0,0.0301]
[1738998734635,0.3628,95986.0,95985.0,0.1187]
[1738998735143,0.3628,95986.0,95976.0,0.2083689]
[1738998736633,0.3618,95986.0,95976.0,0.2083689]
[1738998736839,0.3618,95986.0,95976.0,0.2103689]
[1738998737046,0.3608,95986.0,95976.0,0.3354583]
[1738998737349,0.3608,95986.0,95976.0,0.3384583]
[1738998738743,0.3608,95986.0,95976.0,0.1300894]
[1738998739449,0.3608,95986.0,95981.0,0.2083587]
[1738998740752,0.3608,95986.0,95981.0,0.2093587]
[1738998742447,0.3608,95984.0,95981.0,0.2093587]
[1738998743447,0.3608,95984.0,95981.0,0.2083587]
[1738998743648,0.3608,95984.0,95981.0,0.2093587]
[1738998745734,0.3608,95984.0,95982.0,0.2083564]
[1738998750051,0.3608,95984.0,95983.0,0.2083546]
[1738998752056,0.28150563,95984.0,95983.0,0.2083546]
[1738998752450,0.13210048,95984.0,95983.0,0.2944746]
[1738998752753,0.00015627,95987.0,95986.0,0.2083491]
[1738998753255,0.00015627,95987.0,95986.0,0.22463243]
[1738998753551,0.00015627,95987.0,95986.0,0.22463244]
[1738998754149,0.00215627,95987.0,95986.0,0.25068579]
[1738998754459,0.00415627,95987.0,95986.0,0.25068579]
[1738998755258,0.00415627,95987.0,95986.0,0.22463244]
[1738998756055,0.00415627,95987.0,95986.0,0.2506858]
[1738998756347,0.00415627,95987.0,95986.0,0.26348575]
[1738998757151,0.00415627,95987.0,95986.0,0.23743239]
[1738998757853,0.00415627,95987.0,95986.0,0.22463244]
[1738998758046,0.00415627,95987.0,95986.0,0.01628334]
[1738998760058,0.00415627,95987.0,95983.0,0.08576]
[1738998760659,0.3608,95984.0,95974.0,0.0854]
[1738998761161,0.3608,95975.0,95974.0,0.0854]
[1738998762155,0.3608,95975.0,95974.0,0.0884]
[1738998762358,0.3608,95975.0,95974.0,0.003]
[1738998762560,0.569173,95975.0,95974.0,0.003]
[1738998762748,0.569173,95975.0,95974.0,0.007]
[1738998763658,0.569173,95975.0,95974.0,0.004]
[1738998763860,0.569173,95975.0,95974.0,0.007]
[1738998764250,0.58207863,95975.0,95974.0,0.007]
[1738998765449,0.58207863,95975.0,95974.0,0.006]
[1738998766255,0.58207863,95975.0,95974.0,0.002]
[1738998766455,0.58207863,95975.0,95974.0,0.004]
[1738998766953,0.58207863,95975.0,95974.0,0.002]
[1738998767149,0.58207863,95975.0,95974.0,0.003]
[1738998768959,0.22127863,95975.0,95974.0,0.003]
[1738998769159,0.58207863,95975.0,95974.0,0.003]